Cogmind - Beta 13 @@@ ROGUE MODE // 2024.04.08 @ 16:50:02 Player: Dogenati Result: Destroyed by G-34 Mercenary with Small Laser Performance ------------- Evolutions (0) 0 Regions Visited (1) 200 Robots Destroyed (13) 65 Value Destroyed (251) 251 Prototype IDs (2) 40 Alien Tech Used (0) 0 Bonus (0) 0 TOTAL SCORE: 556 Bonus ------- None Cogmind --------- Core Integrity 0/250 Matter 261/300 Energy 125/125 System Corruption 1% Temperature Cool (6) Movement Walking (120) Location -10/Materials Parts ------- > --- POWER (1) -------- Light Ion Engine > --- PROPULSION (2) --- Aluminum Leg Aluminum Leg > --- UTILITY (2) ------ Visual Processing Unit > --- WEAPON (2) ------- Assault Rifle > --- INVENTORY (5) ---- Medium Matter Pod (100) Visual Processing Unit Peak State ------------ > --- POWER ------------ Light Ion Engine > --- PROPULSION ------- Aluminum Leg Aluminum Leg > --- UTILITY ---------- Visual Processing Unit Terrain Scanner > --- WEAPON ----------- Small Laser Small Laser > --- INVENTORY -------- Light Ion Engine Aluminum Leg Light EM Pulse Cannon Assault Rifle [Rating: 8] Favorites ----------- Power Light Ion Engine Engine Light Ion Engine Propulsion Aluminum Leg Leg Aluminum Leg Utility Terrain Scanner Device Terrain Scanner Processor Visual Processing Unit Weapon Small Laser Energy Gun Small Laser Energy Cannon Light EM Pulse Cannon Ballistic Gun Assault Rifle Build | -11 -10 ------- Run | Yrd Mat Slots Evolved . | . . Power . | . . Propulsion . | . . Utility . | . . Weapon . | . . Parts Attached 19 | 8 11 Power 4 | 2 2 Engine 4 | 2 2 Core . | . . Reactor . | . . Propulsion 6 | 2 4 Treads . | . . Leg 6 | 2 4 Wheel . | . . Hover . | . . Flight . | . . Utility 2 | . 2 Device 1 | . 1 Storage . | . . Processor 1 | . 1 Hackware . | . . Protection . | . . Artifact . | . . Weapon 7 | 4 3 Energy Gun 3 | 3 . Energy Cannon 1 | . 1 Ballistic Gun 3 | 1 2 Ballistic Cannon . | . . Launcher . | . . Special Weapon . | . . Impact Weapon . | . . Slashing Weapon . | . . Piercing Weapon . | . . Special Melee Weapon . | . . Unidentified Prototypes . | . . Parts Lost 8 | . 8 Power 2 | . 2 Propulsion 3 | . 3 Utility 1 | . 1 Weapon 2 | . 2 Highest Loss Streak 5 | . 5 To Critical Strikes . | . . Average Slot Usage (%) 85 | . 85 Engine 5 | . 5 Leg 26 | . 26 Device 13 | . 13 Processor 12 | . 12 Energy Gun 14 | . 14 Energy Cannon 5 | . 5 Ballistic Gun 7 | . 7 Naked Turns . | . . Heaviest Build 8 | 5 8 Greatest Support 20 | 20 20 Greatest Overweight (x) 1 | . 1 Average Overweight (x) . | . . Largest Inventory Capacity 5 | 5 5 Average Capacity 5 | 5 5 Most Carried 5 | 4 5 Average Carried 3 | 1 3 Final Capacity 5 | 5 5 Final Carried 4 | 4 2 Class Distribution -------------------- 100% | Mutant Dominant Class ---------------- Mutant | -10/Materials Resources | -11 -10 ----------- Run | Yrd Mat Matter Collected 501 | 280 221 Remotely . | . . Salvage Created 347 | 36 311 Parts 24 | 2 22 Haulers Intercepted . | . . Recyclers Shooed . | . . Parts Field Recycled . | . . Retrieved Matter . | . . Parts Self-Destructed . | . . Prevented . | . . Kills | -11 -10 ------- Run | Yrd Mat Combat Hostiles Destroyed 10 | 1 9 Guns 9 | 1 8 Cannons 1 | . 1 Classes Destroyed 4 | 1 3 Worker 2 | . 2 Watcher 1 | . 1 Swarmer 5 | . 5 Grunt 5 | 1 4 Best Kill Streak 5 | 1 5 Combat Bots Only 5 | 1 5 Max Kills in Single Turn 2 | 1 2 Gunslinging . | . . Exploded . | . . Melee . | . . Uniques/NPCs Destroyed . | . . Combat | -11 -10 -------- Run | Yrd Mat Hostile Shots Fired 135 | 9 126 Missed 39 | 2 37 Damage Taken 1081 | 79 1002 Core 260 | 44 216 Absorbed by Shields . | . . Core Remaining (%) 82 | 82 . Volleys Fired 54 | 5 49 Largest 2 | 2 2 Hottest 96 | 80 96 Shots Fired 94 | 10 84 Gun 91 | 10 81 Cannon 3 | . 3 Launcher . | . . Special . | . . Kinetic 50 | . 50 Thermal 41 | 10 31 Explosive . | . . Electromagnetic 3 | . 3 Robot Hit Streak 10 | 2 10 Robot Miss Streak 2 | 2 2 Penetration Max . | . . Secondary Targets 2 | . 2 Max Gunslinging Chain 1 | . 1 Shots Hit Robots 57 | 6 51 Core Hits 20 | 2 18 Critical Kills . | . . Critical Parts Destroyed . | . . Critical Strikes . | . . Melee Attacks . | . . Impact . | . . Slashing . | . . Piercing . | . . Sneak Attacks . | . . Combat Hostiles . | . . Follow-up Attacks . | . . Damage Inflicted 797 | 67 730 Guns 682 | 67 615 Cannons 69 | . 69 Explosions 44 | . 44 Melee . | . . Ramming 2 | . 2 Kinetic 371 | . 371 Thermal 355 | 67 288 Explosive . | . . Electromagnetic 69 | . 69 Impact . | . . Slashing . | . . Piercing . | . . Highest Corruption 1 | . 1 Average Corruption 1 | . 1 Corruption Purged . | . . Corruption Blocked . | . . Effects 2 | . 2 Message Errors 1 | . 1 Weapon Failures 1 | . 1 Overload Shots . | . . Overflow Damage . | . . Projectiles . | . . Explosions . | . . Melee . | . . Knockbacks . | . . Impact . | . . Kinetic . | . . Secondary . | . . Self-Inflicted Damage . | . . Shots . | . . Rammed . | . . Targets Rammed 3 | . 3 Kicked 3 | . 3 Crushed . | . . Highest Temperature 223 | 98 223 Average Temperature 91 | 61 100 Received Heat Transfer 510 | 42 468 Effects 1 | . 1 Interference 1 | . 1 Siege Activations . | . . Robots Corrupted . | . . Combat Hostiles . | . . Parts Fried . | . . Impact Corruptions . | . . Robots Melted . | . . Combat Hostiles . | . . Parts Melted 1 | . 1 Heat Transferred 750 | 150 600 Parts Sabotaged . | . . Parts Stolen . | . . Parts Stripped . | . . Power Chain Reactions 1 | . 1 Alert | -11 -10 ------- Run | Yrd Mat Peak Influence 177 | 20 177 Initial 13 | . 13 Average 44 | 2 57 Maximum Alert Level . | . . Low Security (%) 100 | 100 100 Level 1 . | . . Level 2 . | . . Level 3 . | . . Level 4 . | . . Level 5 . | . . High Security . | . . Max Security . | . . Squads Dispatched 2 | . 2 Investigation 1 | . 1 Extermination . | . . Reinforcement 1 | . 1 Assault . | . . Garrison . | . . Intercept . | . . Searches Triggered . | . . Construction Impeded . | . . Haulers Reinforced . | . . Active Scanning Responses . | . . Cargo Convoy Interrupts . | . . Stealth | -11 -10 --------- Run | Yrd Mat Distress Signals 2 | . 2 Communications Jammed . | . . Distress Signals . | . . Times Spotted 16 | 1 15 Peak Tracking Total 8 | 1 8 Tactical Retreats . | . . Traps | -11 -10 ------- Run | Yrd Mat Traps Triggered 1 | . 1 Indirectly . | . . Trap Hack Attempts . | . . Triggered . | . . Disarmed . | . . Reprogrammed 4 | . 4 Reused . | . . Traps Extracted . | . . Installed . | . . Triggered . | . . Machines | -11 -10 ---------- Run | Yrd Mat Machines Disabled . | . . Max in Single Turn . | . . Machines Repaired . | . . Machines Dismantled . | . . Machines Sabotaged . | . . Overloaded Fab Kills . | . . Hacking | -11 -10 --------- Run | Yrd Mat Machines Accessed 2 | . 2 Terminals 2 | . 2 Fabricators . | . . Repair Stations . | . . Recycling Units . | . . Scanalyzers . | . . Garrison Access . | . . Total Hacks 10 | . 10 Successful 6 | . 6 Failed 4 | . 4 Catastrophic . | . . Database Lockouts . | . . Manual . | . . Terminals 10 | . 10 Fabricators . | . . Repair Stations . | . . Recycling Units . | . . Scanalyzers . | . . Garrison Access . | . . Terminal Hacks 6 | . 6 Record 2 | . 2 Prototype ID Bank 1 | . 1 Reprogram Traps 1 | . 1 Dispatch Records 1 | . 1 Zone Layout 1 | . 1 Fabricator Hacks . | . . Repair Station Hacks . | . . Recycling Unit Hacks . | . . Scanalyzer . | . . Garrison Access Hacks . | . . Unauthorized Hacks . | . . Terminals . | . . Fabricators . | . . Repair Stations . | . . Recycling Units . | . . Scanalyzers . | . . Garrison Access . | . . Data Cores Recovered . | . . Used . | . . Hacking Detections 1 | . 1 Full Trace Events 1 | . 1 Feedback Events 1 | . 1 Corruption 1 | . 1 Feedback Blocked . | . . Robot Schematics Acquired . | . . Robots Built . | . . Authchips . | . . Time . | . . Total Robot Build Rating . | . . Part Schematics Acquired . | . . Parts Built . | . . Authchips . | . . Time . | . . Total Part Build Rating . | . . Parts Repaired . | . . Time . | . . Parts Recycled . | . . Recycled Matter . | . . Retrieved Matter . | . . Retrieved Components . | . . Parts Scanalyzed . | . . Part Schematics Acquired . | . . Parts Damaged . | . . Bothacking | -11 -10 ------------ Run | Yrd Mat Used RIF Installer . | . . Robots Hacked . | . . Non-combat . | . . Combat . | . . Robot Hacks Applied . | . . Relay Couplers Released . | . . Fabnet Peak Effective % . | . . Robots Rewired . | . . Allies Hacked . | . . Hacks Repelled . | . . Allies | -11 -10 -------- Run | Yrd Mat Total Allies . | . . Largest Group . | . . Highest-Rated Group . | . . Highest-Rated Ally . | . . Total Orders . | . . Ally Attacks . | . . Total Damage . | . . Kills . | . . Allies Corrupted . | . . Allies Melted . | . . Intel | -11 -10 ------- Run | Yrd Mat Robot Analysis Total . | . . Derelict Logs Recovered . | . . Drone Launches . | . . Drone Recoveries . | . . Exploration | -11 -10 ------------- Run | Yrd Mat Turns Passed 759 | 174 585 Spaces Moved 481 | 134 347 Core 50 | 35 15 Treads . | . . Legs 431 | 99 332 Wheels . | . . Hover . | . . Flight . | . . Fastest Speed 50 | 50 100 Average Speed 114 | 101 119 Slowest Speed 120 | 120 120 Overloaded Moves . | . . Propulsion Burnouts . | . . Robots Hopped . | . . Cave-ins Triggered . | . . Exploration Rate (%) 28 | 6 50 Regions Visited 1 Branch Regions . Pre-discovered Areas . | . . Known Exits Taken . | . . Unknown Exits Taken 1 | 1 . Scrap Searched . | . . Spaces Dug . | . . Terrain Destroyed 6 | . 6 Melee . | . . Projectile . | . . AOE 6 | . 6 Terrain Rammed . | . . Walls Destroyed . | . . Machines Disabled . | . . Actions | -11 -10 --------- Run | Yrd Mat Total 597 | 162 435 Wait 13 | 2 11 Move 480 | 133 347 Hop . | . . Pick Up 21 | 11 10 Fast Attach . | . . Attach 16 | 6 10 Detach 1 | 1 . Swap 3 | 2 1 Drop 6 | 2 4 Fire 54 | 5 49 Melee . | . . Ram . | . . Kick 3 | . 3 Crush . | . . Escape Stasis . | . . Rewire . | . . Trap . | . . Miscellaneous . | . . Route ------- -11/Scrapyard -10/Materials (discovered 2 exits: [*Mat] / [*Min]) History --------- Turn | Location | Event 2 | -11/Scrapyard | Met Revision 17 116 | -11/Scrapyard | Discovered new exit (range 8) 175 | -11/Scrapyard | Entered Materials 301 | -10/Materials | Build established: Mutant 369 | -10/Materials | Core integrity fell below 50% 403 | -10/Materials | Lost 5 parts (2p2n1w) 524 | -10/Materials | Discovered new exit (range 5) 617 | -10/Materials | Discovered new exit (range 7) 624 | -10/Materials | Core integrity fell below 20% 760 | -10/Materials | Destroyed by G-34 Mercenary with Small Laser Last Messages --------------- Acquired 21 matter. W-16 Scout sends out distress signal. K-01 Serf cleans the Machine. Acquired Lgt. Ion Engine. Acquired 22 matter. Acquired 6 matter. Aluminum Leg destroyed. Connecting with Terminal... >>Enumerate(Squads) Retrieving dispatch records... Found 4 active squads: 1x Surveillance 2x Transport 1x Reinforcement >>Layout(Zone) Retrieving Zone 5B layout... Downloaded map data. G-34 Mercenary destroyed. Assault Rifle destroyed. Terrain Scanner destroyed. Map ----- +----------------------------------------------------+ | ?????????????????????????????????????????????????? | | ?????????????????????????????????????????????????? | | ?????????????????????????????????????????????????? | | ?????????????????????????????????????????????????? | | ?????????????????????????????????????????????????? | | ?????????????????????????????????????????????????? | | ?????????????????????????????????????????????????? | | ?????????????????????????????????????????????????? | | ?????????????????????????????????????????????????? | | ????????? "T" # + #????????# ?????????? | | ????????? # # #????????# ?????????? | | ????????? # # #????????# ?????????? | | ????????? # # #?######## ?????????? | | ????????? # + #?#!![[[[# ?????????? | | ? ????? # ###########?#!![[[[# ?????????? | | ? ########### ##########??# # ?????????? | | ? ## #### ###?????????? | | # *[= #???????????? | | # !!! %<% *= = ###?????????? | | # !! = %[== !/# ?????????? | | # !! #######/##" "##[!![ / # ?????????? | | # ## #" |"! "##[!= # ?????????? | | # ## #"""""""## ![ # ?????????? | | # !## """ ########## ] # ?????????? | | # """ ## """ # "T" ##[ # ?????????? | | + """ ## """ # @ # ###+#### #??? | | # """ ## # """ # #? | | # """ ## # """%gu +? | | # ########## """[# #? | | ## # ########+###+#??? | | ## """ ##u ##?????#?? ??????? | | ##w """ ## #??????#???""????? | | ##+############ ## """ ## ##?????#????"????? | | #??????# ## + T####??#?????????? | | #?#????# ## ## # ####?#?????????? | | #??????# ########### # #?#?????????? | | #??????# / * # # #?#?????????? | | ######## #### + ??#?????????? | | + #?## """ # # # ##?#?????????? | | #########+##### """ # #####??#?????????? | | #?#?# # """ # #????????????????? | | ########???# # # #????????????????? | | #####???#??# #####+## % ################## | | #??????# ##### % + | | #??????# + % ########## | | #??????# """ """ #########+#####?????# """ """ | | "" #??????# """ """ #??## #?????# """ """ | | "" #??????# """ """ #???#^ ^ #?#???# """ """ | | "" #??????###########???#^ #????## | | #####????????????????????# #?????#######+# | +----------------------------------------------------+ Best States ------------- Heat Dissipation 25 Energy Generation 10 Energy Capacity 125 Matter Stores 300 Matter Capacity 300 Sight Range 18 Terrain Scan Range 14 Terrain Scan Density 10 Evasion (%) 55 Item Schematics ----------------- None Robot Schematics ------------------ None Fabricated ------------ Nothing Alien Tech Used ----------------- None Achievements -------------- Crack Shot Challenges ------------ None Game ------ Seed IntegrityPlatingTerrabomb Manual? 0 Play Time 00:18:29 Cumulative 0.8 hours Start 2024.04.08 @ 16:30:56 End 2024.04.08 @ 16:50:02 Sessions 1 Manual Loads 0 Difficulty Rogue Special Mode None Game No. 2 Rogue 2 Adventurer 0 Explorer 0 Win Type - Total 0 Types 0/0/0/0/0/0/0/0/0 Lore% 0 Gallery% 1 Achievement% 1 Wizard Run 0 Options --------- Layout 1 ASCII 0 Keyboard 1 Movement Numpad Keybinds 0 Fullscreen 2 Font 24/Smallcaps Map View 50x35 Zoom Use 0% Tactical HUD 0 Map Filters NONE Filters NONE Steam 1 RUN: 27977ccb-3266-4e01-a9ba-a5ca633e7001